bitfinex-derivatives/quotes_BNBF0:USTF0_20250115
["timestamp","ask_amount","ask_price","bid_price","bid_amount"]
[1736942914101,0.26597923,691.42,690.28,0.28973749]
[1736942914494,1.0823102,691.4,690.28,0.28973749]
[1736942914697,0.26597923,691.39,690.28,0.28973749]
[1736942915502,1.0823102,691.35,690.28,0.28973749]
[1736942917903,1.0823102,691.34,690.28,0.28973749]
[1736942918806,1.0823102,691.29,690.28,0.28973749]
[1736942920007,1.0823102,691.27,690.28,0.28973749]
[1736942920810,1.0823102,691.26,690.28,0.28973749]
[1736942921911,1.0823102,691.25,690.28,0.28973749]
[1736942922809,1.0823102,691.26,690.28,0.28973749]
[1736942924113,1.0823102,691.32,690.28,0.28973749]
[1736942924908,1.0823102,691.33,690.28,0.28973749]
[1736942925713,1.0823102,691.35,690.28,0.28973749]
[1736942926808,1.0823102,691.36,690.28,0.28973749]
[1736942927710,0.28917195,691.63,690.28,0.28973749]
[1736942927711,1.0823102,691.37,690.28,0.28973749]
[1736942929007,0.28917195,691.63,690.28,0.28973749]
[1736942929008,1.0823102,691.36,690.28,0.28973749]
[1736942930117,0.28917195,691.63,690.28,0.28973749]
[1736942930118,1.0823102,691.4,690.28,0.28973749]
[1736942931614,1.0823102,691.41,690.28,0.28973749]
[1736942932814,1.0823102,691.4,690.28,0.28973749]
[1736942933716,1.0823102,691.39,690.28,0.28973749]
[1736942934726,1.0823102,691.37,690.28,0.28973749]
[1736942935818,1.0823102,691.35,690.28,0.28973749]
[1736942936719,1.0823102,691.31,690.28,0.28973749]
[1736942938126,1.0823102,691.3,690.28,0.28973749]
[1736942941226,1.0823102,691.25,690.28,0.28973749]
[1736942941629,0.26606277,691.24,690.28,0.28973749]
[1736942941830,0.26606277,691.24,689.94,1.07699222]
[1736942942227,1.0823102,691.1,689.93,1.07699222]
[1736942943337,1.0823102,691.13,689.86,1.07699222]
[1736942943534,1.0823102,691.13,689.87,0.28990969]
[1736942944435,1.0823102,691.16,689.87,0.28990969]
[1736942945434,1.0823102,691.19,689.87,0.28990969]
[1736942946429,1.0823102,691.22,689.87,0.28990969]
[1736942947034,0.85203176,691.62,689.87,0.28990969]
[1736942947035,1.0823102,691.27,689.87,0.28990969]
[1736942947338,0.26609238,691.26,689.87,0.28990969]
[1736942948739,0.28933092,691.25,689.87,0.28990969]
[1736942948942,0.26609663,691.24,689.87,0.28990969]
[1736942950942,0.28933092,691.25,689.87,0.28990969]
[1736942951142,0.2660957,691.24,689.87,0.28990969]
[1736942953635,0.26612867,691.23,689.87,0.28990969]
[1736942953842,0.26612867,691.22,689.87,0.28990969]
[1736942954043,0.28934766,691.21,689.87,0.28990969]
[1736942954243,0.26612867,691.2,689.87,0.28990969]
[1736942955940,0.55548052,691.2,689.87,0.28990969]
[1736942956144,0.26612867,691.19,689.87,0.28990969]
[1736942956347,0.26611809,691.18,689.87,0.28990969]
[1736942956645,0.26611809,691.17,689.87,0.28990969]
[1736942956844,0.26611809,691.16,689.87,0.28990969]
[1736942957040,0.28935185,691.2,689.87,0.28990969]
[1736942957245,0.26611591,691.19,689.87,0.28990969]
[1736942959041,0.28935185,691.2,689.87,0.28990969]
[1736942959242,0.26611859,691.19,689.87,0.28990969]
[1736942959446,0.28935185,691.2,689.87,0.28990969]
[1736942969356,0.26611579,691.19,689.87,0.28990969]
[1736942970048,0.28935185,691.2,689.87,0.28990969]
[1736942970252,0.26611561,691.19,689.87,0.28990969]
[1736942971156,0.55547164,691.19,689.87,0.28990969]
[1736942971352,0.26611561,691.18,689.87,0.28990969]
[1736942971557,0.26612005,691.17,689.87,0.28990969]
[1736942971757,0.26612005,691.16,689.87,0.28990969]
[1736942971956,0.26612005,691.15,689.87,0.28990969]
[1736942972151,0.26612005,691.14,689.87,0.28990969]
[1736942972356,0.26612005,691.13,689.87,0.28990969]
[1736942972559,0.26612005,691.12,689.87,0.28990969]
[1736942972759,0.26612455,691.11,689.87,0.28990969]
[1736942972958,0.26612455,691.14,689.87,0.28990969]
[1736942973153,0.26612455,691.13,689.87,0.28990969]
[1736942973354,0.26612455,691.12,689.87,0.28990969]
[1736942973559,1.0823102,691.15,689.87,0.28990969]
[1736942973759,1.0823102,691.09,689.87,0.28990969]
[1736942973960,0.26612426,691.08,689.87,0.28990969]
[1736942974759,1.0823102,691.0,689.87,0.28990969]
[1736942976962,1.0823102,690.98,689.87,0.28990969]
[1736942977954,1.0823102,691.05,689.87,0.28990969]
[1736942979161,1.0823102,691.06,689.87,0.28990969]
[1736942980156,1.0823102,691.07,689.87,0.28990969]
[1736942981963,1.0823102,691.05,689.87,0.28990969]
[1736942982858,1.0823102,691.04,689.87,0.28990969]
[1736942984162,1.0823102,691.03,689.87,0.28990969]
[1736942984963,0.28935603,691.19,689.89,1.07699222]
[1736942984964,1.0823102,690.94,689.89,1.07699222]
[1736942987467,1.0823102,690.9,689.87,1.36690191]
[1736942988269,1.0823102,690.88,689.87,0.28990969]
[1736942989470,1.0823102,690.91,689.89,1.07699222]
[1736942990568,1.0823102,690.92,689.9,1.07699222]
[1736942993671,1.0823102,690.92,689.89,1.07699222]
[1736942994974,1.0823102,691.0,689.87,0.28990969]
[1736942995877,1.0823102,690.99,689.87,0.28990969]
[1736942997275,1.0823102,691.01,689.87,0.28990969]
[1736942998076,1.0823102,691.0,689.87,0.28990969]
[1736942998977,0.28935603,691.19,689.87,0.28990969]
[1736942998978,1.0823102,690.99,689.87,0.28990969]
[1736942999975,1.0823102,691.0,689.87,0.28990969]
[1736943000780,1.0823102,691.04,689.87,0.28990969]
[1736943001982,0.28935603,691.19,689.87,0.28990969]
[1736943005085,1.0823102,691.14,689.87,0.28990969]
[1736943007290,1.0823102,691.12,689.87,0.28990969]
[1736943008489,1.0823102,691.13,689.87,0.28990969]
[1736943009693,1.0823102,691.12,689.87,0.28990969]
[1736943010495,0.26611806,691.11,689.87,0.28990969]
[1736943010791,1.0823102,691.0,689.87,0.28990969]
[1736943011596,1.0823102,690.92,689.87,0.28990969]
[1736943012797,1.0823102,690.94,689.87,0.28990969]
[1736943015397,0.28935603,691.19,689.87,0.28990969]
[1736943015398,1.0823102,690.95,689.87,0.28990969]
[1736943016200,1.0823102,690.96,689.87,0.28990969]
[1736943017200,0.28935603,691.19,689.87,0.28990969]
[1736943017201,1.0823102,690.92,689.87,0.28990969]
[1736943018402,1.0823102,690.96,689.87,0.28990969]
[1736943019300,1.0823102,690.97,689.87,0.28990969]
[1736943020296,1.0823102,690.98,689.87,0.28990969]
[1736943021503,1.0823102,691.05,689.87,0.28990969]
[1736943022402,1.0823102,691.07,689.87,0.28990969]
[1736943023303,1.0823102,691.06,689.87,0.28990969]
[1736943024800,1.0823102,690.99,689.87,0.28990969]
[1736943026002,1.0823102,690.98,689.87,0.28990969]
[1736943031399,1.0823102,690.97,689.87,0.28990969]
[1736943032605,1.08060261,691.15,689.87,0.28990969]
[1736943032606,1.0823102,690.96,689.87,0.28990969]
[1736943033701,1.0823102,690.97,689.87,0.28990969]
[1736943037204,1.0823102,690.96,689.87,0.28990969]
[1736943038111,1.0823102,690.99,689.87,0.28990969]
[1736943039908,1.0823102,691.06,689.87,0.28990969]
[1736943040902,1.0823102,691.07,689.87,0.28990969]
[1736943041907,1.0823102,691.06,689.87,0.28990969]
[1736943043605,1.0823102,691.01,689.87,0.28990969]
[1736943044605,1.0823102,691.03,689.87,0.28990969]
[1736943046110,1.0823102,691.02,689.87,0.28990969]
[1736943047010,1.0823102,691.07,689.87,0.28990969]
[1736943048013,0.28941047,691.06,689.87,0.28990969]
[1736943048714,1.0823102,691.03,689.87,0.28990969]
[1736943049615,1.0823102,691.04,689.87,0.28990969]
[1736943050816,0.28941047,691.06,689.87,0.28990969]
[1736943051413,0.26618649,691.05,689.87,0.28990969]
[1736943052115,1.37172067,691.06,689.87,0.28990969]
[1736943052318,0.26619224,691.05,689.87,0.28990969]
[1736943052517,1.0823102,690.99,689.87,0.28990969]
[1736943052716,0.26619224,690.98,689.87,0.28990969]
[1736943053314,1.0823102,690.99,689.87,0.28990969]
[1736943054714,0.26618049,690.98,689.87,0.28990969]
[1736943054912,0.2661803,691.01,689.87,0.28990969]
[1736943055220,0.2661803,691.0,689.87,0.28990969]
[1736943055420,0.2661803,690.99,689.87,0.28990969]
[1736943055713,0.26618669,690.98,689.87,0.28990969]
[1736943055919,0.26618669,690.97,689.87,0.28990969]
[1736943056112,1.0823102,691.0,689.87,0.28990969]
[1736943056318,0.26618462,690.99,689.87,0.28990969]
[1736943056919,0.26618462,690.98,689.87,0.28990969]
[1736943057120,0.26618462,690.97,689.87,0.28990969]
[1736943057319,0.26618462,690.96,689.87,0.28990969]
[1736943057520,1.0823102,691.0,689.87,0.28990969]
[1736943057721,0.26618766,690.99,689.87,0.28990969]
[1736943058421,1.34849786,690.99,689.87,0.28990969]
[1736943058620,0.26618766,690.98,689.87,0.28990969]
[1736943059619,1.34849786,690.98,689.87,0.28990969]
[1736943059823,0.26618766,690.97,689.87,0.28990969]
[1736943060216,1.0823102,690.98,689.87,0.28990969]
[1736943060419,1.0823102,690.93,689.87,0.28990969]
[1736943061320,1.0823102,691.05,689.87,0.28990969]
[1736943061518,0.2662078,691.04,689.87,0.28990969]
[1736943062226,1.0823102,691.04,689.87,0.28990969]
[1736943062425,0.26621472,691.03,689.87,0.28990969]
[1736943062623,1.0823102,691.04,689.87,0.28990969]
[1736943062823,0.26621293,691.03,689.87,0.28990969]
[1736943063022,0.28942722,691.02,689.87,0.28990969]
[1736943065425,0.2662128,691.01,689.87,0.28990969]
[1736943065617,0.2894356,691.0,689.87,0.28990969]
[1736943068826,0.26619522,690.99,689.87,0.28990969]
[1736943069626,1.0823102,690.97,689.87,0.28990969]
[1736943070624,0.2894356,691.0,689.87,0.28990969]
[1736943070625,1.0823102,690.96,689.87,0.28990969]
[1736943071926,0.2894356,691.0,689.87,0.28990969]
[1736943075028,1.0823102,690.97,689.87,0.28990969]
[1736943075928,1.0823102,690.96,689.87,0.28990969]
[1736943076928,1.0823102,690.95,689.87,0.28990969]
[1736943077930,1.0823102,690.94,689.87,0.28990969]
[1736943078928,1.0823102,690.95,689.87,0.28990969]
[1736943079835,0.26618549,690.94,689.87,0.28990969]
[1736943080133,1.34849569,690.94,689.87,0.28990969]
[1736943080333,0.26618549,690.93,689.87,0.28990969]
[1736943080934,1.0823102,690.76,689.87,0.28990969]
[1736943082034,1.0823102,690.83,689.87,0.28990969]
[1736943084033,1.0823102,690.84,689.87,0.28990969]
[1736943084829,1.0823102,690.88,689.87,0.28990969]
[1736943085830,0.2894356,691.0,689.87,0.28990969]
[1736943122363,1.0823102,690.99,689.87,0.28990969]
[1736943124560,1.3717458,691.0,689.87,0.28990969]
[1736943126660,1.0823102,690.99,689.87,0.28990969]
[1736943127962,1.0823102,690.96,689.88,1.07699222]
[1736943128869,1.0823102,690.96,689.89,1.07699222]
[1736943129664,1.0823102,690.93,689.94,1.07699222]
[1736943130763,1.0823102,690.92,689.94,1.07699222]
[1736943131768,1.0823102,690.96,689.89,1.07699222]
[1736943132766,1.0823102,690.97,689.88,1.07699222]
[1736943133973,1.0823102,690.98,689.9,1.07699222]
[1736943134971,1.0823102,690.97,689.87,1.36690191]
[1736943135971,1.0823102,690.97,689.87,0.28990969]
[1736943136372,1.06993228,690.97,689.87,0.28990969]
[1736943136768,0.2894356,691.0,689.87,0.28990969]
[1736943161079,0.2894356,691.0,689.87,1.36690191]
[1736943161983,0.2894356,691.0,689.87,0.28990969]
[1736943168188,0.2894356,691.0,689.87,1.36690191]
[1736943169393,1.08060261,691.27,689.87,1.36690191]
[1736943170390,2.20623033,692.23,689.87,1.36690191]
[1736943170391,1.08060261,691.75,689.87,0.28990969]
[1736943170591,0.266062,691.74,689.87,0.28990969]
[1736943170791,0.28913433,691.72,689.87,0.28990969]
[1736943170991,0.266062,691.71,689.87,0.28990969]
[1736943171887,0.28914687,691.69,689.87,0.28990969]
[1736943172191,0.26606211,691.68,689.87,0.28990969]
[1736943172591,0.28915941,691.66,689.87,0.28990969]
[1736943172793,0.26606211,691.65,689.87,0.28990969]
[1736943173192,0.28917195,691.63,689.87,0.28990969]
[1736943173392,0.26606211,691.62,689.87,0.28990969]
[1736943173593,0.28918449,691.6,689.87,0.28990969]
[1736943173888,0.26606211,691.59,689.87,0.28990969]
[1736943174491,0.28919286,691.58,689.87,0.28990969]
[1736943174688,0.266065,691.57,689.87,0.28990969]
[1736943175092,0.28920122,691.56,689.87,0.28990969]
[1736943175294,0.266065,691.55,689.87,0.28990969]
[1736943175493,0.28920959,691.54,689.87,0.28990969]
[1736943175690,0.266065,691.53,689.87,0.28990969]
[1736943176095,0.28921795,691.52,689.87,0.28990969]
[1736943176297,0.266065,691.51,689.87,0.28990969]
[1736943176498,0.28922631,691.5,689.87,0.28990969]
[1736943176797,0.266065,691.49,689.87,0.28990969]
[1736943177095,0.28923468,691.48,689.87,0.28990969]
[1736943178197,0.26608953,691.47,689.87,0.28990969]
[1736943178692,0.28924305,691.46,689.87,0.28990969]
[1736943178898,1.08060261,691.41,689.87,0.28990969]
[1736943179091,0.55535768,691.4,689.87,0.28990969]
[1736943179397,0.55536186,691.39,689.87,0.28990969]
[1736943179598,1.08060261,691.36,689.87,0.28990969]
[1736943179792,0.5553786,691.35,689.87,0.28990969]
[1736943179997,0.55538278,691.34,689.87,0.28990969]
[1736943180296,0.55538079,691.33,689.87,0.28990969]
[1736943180497,0.26608335,691.32,689.87,0.28990969]
[1736943182195,0.26608257,691.31,689.87,0.28990969]
[1736943182401,0.26608257,691.3,689.87,0.28990969]
[1736943182602,0.26608257,691.29,689.87,0.28990969]
[1736943182903,0.26608257,691.28,689.87,0.28990969]
[1736943183202,0.26608257,691.27,689.87,0.28990969]
[1736943183399,0.26608257,691.26,689.87,0.28990969]
[1736943183602,0.28929744,691.33,689.87,0.28990969]
[1736943183603,0.26608257,691.25,689.87,0.28990969]
[1736943183803,0.26608257,691.24,689.87,0.28990969]
[1736943183999,0.26608257,691.23,689.87,0.28990969]
[1736943184203,0.26608257,691.22,689.87,0.28990969]
[1736943184498,0.26608257,691.21,689.87,0.28990969]
[1736943184705,0.26608257,691.32,689.87,0.28990969]
[1736943184899,0.26608257,691.31,689.87,0.28990969]
[1736943185098,0.26608257,691.32,689.87,0.28990969]
[1736943185295,1.34668518,691.31,689.87,0.28990969]
[1736943185501,0.26608257,691.3,689.87,0.28990969]
[1736943186003,1.08060261,691.28,689.87,0.28990969]
[1736943186204,0.26608062,691.27,689.87,0.28990969]
[1736943186803,0.26608062,691.27,689.93,1.07699222]
[1736943186804,1.08060261,691.26,689.93,1.07699222]
[1736943187104,0.26608062,691.25,689.94,0.28988027]
[1736943187605,0.26606641,691.24,689.94,0.28988027]
[1736943187798,0.26606641,691.25,689.94,0.28988027]
[1736943188005,0.26606641,691.24,689.94,0.28988027]
[1736943188199,0.26606641,691.23,689.94,0.28988027]
[1736943188404,0.26606641,691.22,689.94,0.28988027]
[1736943188605,0.26606641,691.21,689.94,0.28988027]
[1736943188805,0.26606641,691.2,689.94,0.28988027]
[1736943189005,1.08060261,691.31,689.94,0.28988027]
[1736943189205,0.26606938,691.3,689.94,0.28988027]
[1736943189406,0.26606938,691.29,689.94,0.28988027]
[1736943189607,0.26606938,691.28,689.94,0.28988027]
[1736943189807,0.26606938,691.27,689.94,0.28988027]
[1736943190007,0.26606938,691.26,689.94,0.28988027]
[1736943190207,0.26606938,691.32,689.94,0.28988027]
[1736943190409,1.34667199,691.31,689.94,0.28988027]
[1736943190710,0.26606938,691.3,689.94,0.28988027]
[1736943191409,1.34667199,691.3,689.94,0.28988027]
[1736943191708,0.26606938,691.29,689.94,0.28988027]
[1736943193102,0.26607228,691.28,689.94,0.28988027]
[1736943193303,1.08060261,691.3,689.94,0.28988027]
[1736943193504,0.26607226,691.29,689.94,0.28988027]
[1736943194409,0.26607226,691.28,689.94,0.28988027]
[1736943194609,0.28929744,691.33,689.94,0.28988027]
[1736943194809,0.26606425,691.32,689.94,0.28988027]
[1736943195911,0.26607284,691.31,689.94,0.28988027]
[1736943196105,0.26607073,691.32,689.94,0.28988027]
[1736943196309,0.28929744,691.33,689.94,0.28988027]
[1736943196310,0.26607073,691.31,689.94,0.28988027]
[1736943196505,0.26607073,691.3,689.94,0.28988027]
[1736943196810,0.26607073,691.29,689.94,0.28988027]
[1736943197011,0.26607073,691.28,689.94,0.28988027]
[1736943197211,0.28929744,691.33,689.94,0.28988027]
[1736943197410,0.26606242,691.32,689.94,0.28988027]
[1736943198009,0.28929744,691.33,689.94,0.28988027]
[1736943204613,0.26606218,691.32,689.94,0.28988027]
[1736943205411,0.28929744,691.33,689.94,0.28988027]
[1736943205612,0.26606255,691.32,689.94,0.28988027]
[1736943206813,0.28929744,691.33,689.94,0.28988027]
[1736943207115,0.26606519,691.32,689.94,0.28988027]
[1736943209719,0.2660674,691.31,689.94,0.28988027]
[1736943210020,0.2660674,691.3,689.94,0.28988027]
[1736943210320,0.28929744,691.33,689.94,0.28988027]
[1736943210521,0.26606726,691.32,689.94,0.28988027]
[1736943212413,0.28929744,691.33,689.94,0.28988027]
[1736943212414,0.26607167,691.31,689.94,0.28988027]
[1736943212719,0.26607167,691.3,689.94,0.28988027]
[1736943212918,0.26607167,691.29,689.94,0.28988027]
[1736943213118,0.26607167,691.28,689.94,0.28988027]
[1736943213311,0.28929744,691.33,689.94,0.28988027]
[1736943213312,0.26607167,691.27,689.94,0.28988027]
[1736943213516,0.26607167,691.26,689.94,0.28988027]
[1736943213714,0.26607167,691.25,689.94,0.28988027]
[1736943213919,0.26607167,691.24,689.94,0.28988027]
[1736943214119,0.26607167,691.23,689.94,0.28988027]
[1736943214315,0.26607167,691.22,689.94,0.28988027]
[1736943214619,0.26607167,691.21,689.94,0.28988027]
[1736943214815,0.28929744,691.33,689.94,0.28988027]
[1736943215018,1.08060261,691.3,689.94,0.28988027]
[1736943215219,0.26607333,691.29,689.94,0.28988027]
[1736943216313,0.26607333,691.28,689.94,0.28988027]
[1736943216513,0.26607333,691.27,689.94,0.28988027]
[1736943216718,0.26607333,691.26,689.94,0.28988027]
[1736943216919,0.26607333,691.25,689.94,0.28988027]
[1736943217119,0.26607333,691.24,689.94,0.28988027]
[1736943217318,1.08060261,691.32,689.94,0.28988027]
[1736943217514,0.26607276,691.31,689.94,0.28988027]
[1736943217913,0.26607256,691.3,689.94,0.28988027]
[1736943218118,0.26607256,691.29,689.94,0.28988027]
[1736943218415,0.26607256,691.28,689.94,0.28988027]
[1736943218622,1.08060261,691.32,689.94,0.28988027]
[1736943218819,1.08060261,691.28,689.94,1.36687249]
[1736943219118,0.26608162,691.27,689.94,1.36687249]
[1736943219819,1.08060261,691.23,689.94,0.28988027]
[1736943220019,0.26608162,691.22,689.94,0.28988027]
[1736943220613,1.08060261,691.24,689.94,0.28988027]
[1736943220821,0.26608018,691.23,689.94,0.28988027]
[1736943221721,0.26608018,691.22,689.94,0.28988027]
[1736943222018,0.26608018,691.21,689.94,0.28988027]
[1736943222222,0.26608018,691.2,689.94,0.28988027]
[1736943222422,0.26608018,691.19,689.94,1.36687249]
[1736943222616,1.08060261,691.26,689.94,1.36687249]
[1736943222820,0.26607404,691.25,689.94,1.36687249]
[1736943224320,0.26607404,691.25,689.94,0.28988027]
[1736943225319,1.08060261,691.21,689.99,1.07699222]
[1736943225519,0.26607404,691.2,689.99,1.07699222]
[1736943226021,0.26607404,691.2,689.94,0.28988027]
[1736943226223,0.26607459,691.19,689.94,0.28988027]
[1736943226423,1.08060261,691.26,689.94,0.28988027]
[1736943226725,0.26607459,691.25,689.94,0.28988027]
[1736943226926,1.08060261,691.26,689.94,0.28988027]
[1736943227121,0.26607588,691.25,689.94,0.28988027]
[1736943227719,1.34667849,691.25,689.94,0.28988027]
[1736943228024,0.26607588,691.24,689.94,0.28988027]
[1736943229026,0.26606612,691.23,689.94,0.28988027]
[1736943229228,0.26606612,691.22,689.94,0.28988027]
[1736943229426,0.26606612,691.21,689.94,0.28988027]
[1736943229721,1.08060261,691.26,689.94,0.28988027]
[1736943229926,0.28929744,691.33,689.94,0.28988027]
[1736943229927,0.26605923,691.25,689.95,1.07699222]
[1736943230225,0.26605923,691.24,689.95,1.07699222]
[1736943230428,1.08060261,691.29,689.95,1.07699222]
[1736943230725,0.26606539,691.28,689.95,1.07699222]
[1736943230925,1.346668,691.28,689.95,1.07699222]
[1736943231124,0.26606539,691.27,689.95,1.07699222]
[1736943231726,0.2660605,691.26,689.96,1.07699222]
[1736943232021,0.2660605,691.25,689.96,1.07699222]
[1736943232228,0.2660605,691.24,689.96,1.07699222]
[1736943232422,1.08060261,691.29,689.96,1.07699222]
[1736943232628,0.26605909,691.28,689.96,1.07699222]
[1736943232827,0.26605909,691.27,689.97,0.28986767]
[1736943233026,0.26605909,691.26,689.97,0.28986767]
[1736943233220,0.26605909,691.25,689.97,0.28986767]
[1736943233424,0.26605909,691.24,689.97,0.28986767]
[1736943233622,0.26605909,691.23,689.97,0.28986767]
[1736943233922,1.08060261,691.31,689.97,0.28986767]
[1736943234128,0.26605901,691.3,689.97,0.28986767]
[1736943234321,1.08060261,691.31,689.97,0.28986767]
[1736943234528,0.26605901,691.3,689.97,0.28986767]
[1736943234829,1.34666162,691.3,689.97,0.28986767]
[1736943235030,0.26605901,691.29,689.97,0.28986767]
[1736943235231,0.26606181,691.28,689.97,0.28986767]
[1736943235530,0.26606181,691.27,689.97,0.28986767]
[1736943235735,1.08060261,691.24,690.03,1.07699222]
[1736943235932,0.26606181,691.23,690.03,1.07699222]
[1736943236733,0.26606181,691.23,690.02,1.07699222]
[1736943236734,1.08060261,691.22,690.02,1.07699222]
[1736943236928,0.26606181,691.21,690.02,1.07699222]
[1736943237123,1.08060261,691.22,690.02,1.07699222]
[1736943237326,0.26606704,691.21,690.02,1.07699222]
[1736943237732,0.26606704,691.21,690.01,1.07699222]
[1736943237932,0.26606859,691.2,690.01,1.07699222]
[1736943238231,0.26606859,691.19,690.01,1.07699222]
[1736943238431,0.26606859,691.18,690.01,1.07699222]
[1736943238633,1.08060261,691.23,690.01,1.07699222]
[1736943238927,1.34666882,691.22,690.02,1.07699222]
[1736943239126,0.26606621,691.21,690.02,1.07699222]
[1736943239731,1.34666882,691.21,690.03,1.07699222]
[1736943239932,0.26606566,691.2,690.03,1.07699222]
[1736943240733,1.08060261,691.21,690.03,1.07699222]
[1736943242432,1.08060261,691.29,689.98,1.07699222]
[1736943242632,0.26605884,691.28,689.98,1.36685569]
[1736943243133,1.34666145,691.28,689.98,1.36685569]
[1736943243434,0.26605884,691.27,689.98,1.36685569]
[1736943244238,1.08060261,691.28,689.98,1.36685569]
[1736943244739,1.36992097,691.28,689.98,1.36685569]
[1736943245141,0.28931836,691.28,689.98,0.28986347]
[1736943256043,0.26611145,691.27,689.98,0.28986347]
[1736943256444,0.28931836,691.28,689.98,0.28986347]
[1736943256942,0.26611502,691.27,689.98,0.28986347]
[1736943257640,1.08403005,691.15,689.98,0.28986347]
[1736943259645,1.08403005,691.16,689.98,0.28986347]
[1736943260646,1.08403005,691.17,689.98,0.28986347]
[1736943261644,1.08403005,691.14,689.98,0.28986347]
[1736943262646,1.08403005,691.15,689.98,0.28986347]
[1736943263946,1.08403005,691.17,689.98,0.28986347]
[1736943264750,1.08403005,691.12,689.98,0.28986347]
[1736943267747,1.08403005,691.1,689.98,0.28986347]
[1736943268753,1.08403005,691.11,689.98,0.28986347]
[1736943270053,1.08403005,691.1,689.98,0.28986347]
[1736943271856,0.28931836,691.28,689.98,0.28986347]
[1736943271857,1.08403005,691.09,689.98,0.28986347]
[1736943272759,0.28931836,691.28,689.98,0.28986347]
[1736943278559,1.37334841,691.28,689.98,0.28986347]
[1736943279658,1.08403005,691.26,689.98,0.28986347]
[1736943280462,0.28931836,691.28,689.98,0.28986347]
[1736943280463,1.08403005,691.19,689.98,0.28986347]
[1736943281961,0.26609069,691.18,689.98,0.28986347]
[1736943282558,1.08403005,691.05,689.98,0.28986347]
[1736943283560,1.08403005,691.04,689.98,0.28986347]
[1736943284361,1.08403005,691.03,689.98,0.28986347]
[1736943285266,1.08403005,691.05,689.98,0.28986347]
[1736943286562,1.08403005,691.04,689.98,0.28986347]
[1736943287563,1.08403005,691.01,689.98,0.28986347]
[1736943288269,1.08403005,691.04,689.98,0.28986347]
[1736943291264,1.08403005,691.02,689.98,0.28986347]
[1736943292067,1.08403005,690.99,689.98,0.28986347]
[1736943292966,0.85293936,691.27,689.98,0.28986347]
[1736943292967,1.08403005,691.02,689.98,0.28986347]
[1736943293861,0.85293936,691.27,689.98,0.28986347]
[1736943293862,1.08403005,691.01,689.98,0.28986347]
[1736943294768,1.08403005,691.0,689.98,0.28986347]
[1736943296069,1.08060261,691.22,689.98,0.28986347]
[1736943296070,1.08403005,691.01,689.98,0.28986347]
[1736943297173,1.08403005,691.02,689.98,0.28986347]
[1736943298070,1.08403005,691.0,689.98,0.28986347]
[1736943298872,1.08403005,690.99,689.98,0.28986347]
[1736943299768,1.08403005,691.0,689.98,0.28986347]
[1736943301671,1.08403005,690.99,689.98,0.28986347]
[1736943302778,0.85293936,691.27,689.98,0.28986347]
[1736943302779,1.08403005,690.94,689.98,0.28986347]
[1736943304774,1.08403005,690.95,689.98,0.28986347]
[1736943305779,0.85293936,691.27,689.98,0.28986347]
[1736943305780,1.08403005,690.93,689.98,0.28986347]
[1736943306977,1.08403005,691.08,689.98,0.28986347]
[1736943309482,1.08403005,691.09,689.98,0.28986347]
[1736943310176,1.08403005,691.11,689.98,0.28986347]
[1736943312181,1.08403005,691.1,689.98,0.28986347]
[1736943313283,1.08403005,691.09,689.98,0.28986347]
[1736943314281,0.28931836,691.28,689.98,0.28986347]
[1736943314282,1.08403005,691.12,689.98,0.28986347]
[1736943315481,1.08403005,691.13,689.98,0.28986347]
[1736943316977,1.08403005,691.14,689.98,0.28986347]
[1736943318077,1.08403005,691.17,689.98,0.28986347]
[1736943319281,1.08403005,691.14,689.98,0.28986347]
[1736943320378,1.08403005,691.16,689.98,0.28986347]
[1736943321284,1.08403005,691.18,689.98,0.28986347]
[1736943322985,1.08403005,691.19,689.98,0.28986347]
[1736943324188,1.08403005,691.2,689.98,0.28986347]
[1736943325590,0.26608272,691.19,689.98,0.28986347]
[1736943326285,1.08403005,691.11,689.98,0.28986347]
[1736943326687,0.26609825,691.1,689.98,0.28986347]
[1736943327092,1.08403005,691.07,689.98,0.28986347]
[1736943329292,1.08403005,691.12,689.98,0.28986347]
[1736943330093,1.08403005,691.1,689.98,0.28986347]
[1736943331387,1.08403005,691.08,689.98,0.28986347]
[1736943332986,1.08403005,691.08,689.57,1.07699222]
[1736943333191,1.08403005,691.08,689.58,0.29003161]
[1736943333793,1.08403005,691.1,689.58,0.29003161]
[1736943333989,0.2893979,691.09,689.58,0.29003161]
[1736943334596,1.08403005,691.08,689.58,0.29003161]
[1736943335395,1.37342795,691.09,689.58,0.29003161]
[1736943335690,0.26616874,691.08,689.58,0.29003161]
[1736943336490,1.08403005,691.03,689.58,0.29003161]
[1736943337395,1.08403005,691.05,689.58,0.29003161]
[1736943338096,1.08403005,691.08,689.58,0.29003161]
[1736943338290,0.26618313,691.07,689.58,0.29003161]
[1736943338695,0.28941047,691.06,689.58,0.29003161]
[1736943338892,0.26618503,691.05,689.58,0.29003161]
[1736943340392,0.26623307,691.04,689.58,0.29003161]
[1736943340699,1.08403005,690.94,689.58,0.29003161]
[1736943340896,0.26623307,690.93,689.58,0.29003161]
[1736943341091,0.26622758,690.92,689.58,0.29003161]
[1736943341398,0.26622758,690.91,689.58,0.29003161]
[1736943341598,0.26622758,690.9,689.58,0.29003161]
[1736943341795,0.26622758,690.89,689.58,0.29003161]
[1736943341996,0.26622758,690.88,689.58,0.29003161]
[1736943342196,1.08403005,690.98,689.58,0.29003161]